[Event "Titled Tuesday Blitz October 11 Early 2022"]
[White "Horak, Martin"]
[Black "Sadubayev, Airat"]
[WhiteFideId "367095"]
[BlackFideId "13713264"]
[WhiteElo "2091"]
[BlackElo "2215"]
[Result "0-1"]
[Round "10"]
[TimeControl "180+1"]
[Date "2022.10.12"]
[WhiteClock "0:00:05"]
[BlackClock "0:00:04"]

1. d4 {[%clk 0:03:00]}  Nf6 {[%clk 0:02:58]} 2. Nf3 {[%clk 0:03:00]}  c5 {[%clk 0:02:57]} 3. d5 {[%clk 0:03:00]}  g6 {[%clk 0:02:57]} 4. Nc3 {[%clk 0:03:00]}  Bg7 {[%clk 0:02:55]} 5. e4 {[%clk 0:03:01]}  d6 {[%clk 0:02:53]} 6. Bb5+ {[%clk 0:03:00]}  Nfd7 {[%clk 0:02:51]} 7. a4 {[%clk 0:02:55]}  O-O {[%clk 0:02:50]} 8. h3 {[%clk 0:02:55]}  Na6 {[%clk 0:02:49]} 9. O-O {[%clk 0:02:31]}  Nb4 {[%clk 0:02:47]} 10. Bf4 {[%clk 0:02:26]}  a6 {[%clk 0:02:40]} 11. Bc4 {[%clk 0:02:15]}  b5 {[%clk 0:02:29]} 12. axb5 {[%clk 0:02:08]}  Nb6 {[%clk 0:02:28]} 13. Nd2 {[%clk 0:01:53]}  Nxc4 {[%clk 0:02:09]} 14. Nxc4 {[%clk 0:01:52]}  Bd7 {[%clk 0:01:59]} 15. bxa6 {[%clk 0:01:34]}  Qc7 {[%clk 0:01:57]} 16. Qd2 {[%clk 0:01:22]}  Nxa6 {[%clk 0:01:47]} 17. Rfe1 {[%clk 0:01:11]}  Nb4 {[%clk 0:01:14]} 18. Rxa8 {[%clk 0:01:09]}  Rxa8 {[%clk 0:01:13]} 19. e5 {[%clk 0:01:10]}  dxe5 {[%clk 0:01:09]} 20. Nxe5 {[%clk 0:00:52]}  Qb7 {[%clk 0:01:08]} 21. Nxd7 {[%clk 0:00:40]}  Qxd7 {[%clk 0:01:07]} 22. Rd1 {[%clk 0:00:15]}  Qf5 {[%clk 0:01:01]} 23. Be3 {[%clk 0:00:12]}  Rc8 {[%clk 0:00:54]} 24. Ne2 {[%clk 0:00:12]}  Qxc2 {[%clk 0:00:47]} 25. Rc1 {[%clk 0:00:05]}  Qxd2 {[%clk 0:00:44]} 26. Bxd2 {[%clk 0:00:06]}  Nxd5 {[%clk 0:00:44]} 27. Bc3 {[%clk 0:00:03]}  Nxc3 {[%clk 0:00:42]} 28. Nxc3 {[%clk 0:00:04]}  e6 {[%clk 0:00:39]} 29. Na4 {[%clk 0:00:03]}  Bd4 {[%clk 0:00:37]} 30. b4 {[%clk 0:00:04]}  c4 {[%clk 0:00:35]} 31. b5 {[%clk 0:00:04]}  c3 {[%clk 0:00:30]} 32. b6 {[%clk 0:00:02]}  Rc4 {[%clk 0:00:30]} 33. b7 {[%clk 0:00:02]}  Rb4 {[%clk 0:00:30]} 34. Nxc3 {[%clk 0:00:01]}  Rxb7 {[%clk 0:00:30]} 35. Ne2 {[%clk 0:00:01]}  Ba7 {[%clk 0:00:27]} 36. Kf1 {[%clk 0:00:01]}  Kg7 {[%clk 0:00:27]} 37. g3 {[%clk 0:00:02]}  h5 {[%clk 0:00:25]} 38. h4 {[%clk 0:00:02]}  Kf6 {[%clk 0:00:20]} 39. Rc2 {[%clk 0:00:02]}  e5 {[%clk 0:00:19]} 40. Kg2 {[%clk 0:00:03]}  Kf5 {[%clk 0:00:18]} 41. Ng1 {[%clk 0:00:03]}  f6 {[%clk 0:00:16]} 42. Nf3 {[%clk 0:00:04]}  Rd7 {[%clk 0:00:14]} 43. Ng1 {[%clk 0:00:04]}  Bd4 {[%clk 0:00:11]} 44. Nf3 {[%clk 0:00:04]}  Ba7 {[%clk 0:00:11]} 45. Ng1 {[%clk 0:00:05]}  Ke6 {[%clk 0:00:11]} 46. Nf3 {[%clk 0:00:05]}  Rd6 {[%clk 0:00:10]} 47. Ng1 {[%clk 0:00:05]}  Bb6 {[%clk 0:00:10]} 48. Nf3 {[%clk 0:00:06]}  e4 {[%clk 0:00:10]} 49. Ng1 {[%clk 0:00:05]}  Bd4 {[%clk 0:00:09]} 50. Ne2 {[%clk 0:00:06]}  Be5 {[%clk 0:00:09]} 51. Ra2 {[%clk 0:00:06]}  f5 {[%clk 0:00:10]} 52. Nf4+ {[%clk 0:00:05]}  Bxf4 {[%clk 0:00:09]} 53. gxf4 {[%clk 0:00:05]}  Kf6 {[%clk 0:00:08]} 54. Ra8 {[%clk 0:00:05]}  Rd3 {[%clk 0:00:08]} 55. Ra6+ {[%clk 0:00:05]}  Kg7 {[%clk 0:00:08]} 56. Ra7+ {[%clk 0:00:05]}  Kh6 {[%clk 0:00:08]} 57. Ra8 {[%clk 0:00:04]}  Rf3 {[%clk 0:00:08]} 58. Rh8+ {[%clk 0:00:04]}  Kg7 {[%clk 0:00:08]} 59. Ra8 {[%clk 0:00:05]}  Rxf4 {[%clk 0:00:08]} 60. Kg3 {[%clk 0:00:05]}  Rf3+ {[%clk 0:00:08]} 61. Kg2 {[%clk 0:00:05]}  Kf6 {[%clk 0:00:09]} 62. Ra6+ {[%clk 0:00:05]}  Kg7 {[%clk 0:00:08]} 63. Ra7+ {[%clk 0:00:05]}  Kh6 {[%clk 0:00:09]} 64. Ra8 {[%clk 0:00:06]}  Rd3 {[%clk 0:00:08]} 65. Rh8+ {[%clk 0:00:07]}  Kg7 {[%clk 0:00:08]} 66. Ra8 {[%clk 0:00:08]}  Rd2 {[%clk 0:00:08]} 67. Ra7+ {[%clk 0:00:08]}  Kh6 {[%clk 0:00:08]} 68. Kg3 {[%clk 0:00:09]}  Rd6 {[%clk 0:00:05]} 69. Ra8 {[%clk 0:00:09]}  Rd3+ {[%clk 0:00:05]} 70. Kg2 {[%clk 0:00:09]}  e3 {[%clk 0:00:05]} 71. fxe3 {[%clk 0:00:08]}  Rxe3 {[%clk 0:00:06]} 72. Rh8+ {[%clk 0:00:08]}  Kg7 {[%clk 0:00:06]} 73. Ra8 {[%clk 0:00:09]}  Kf6 {[%clk 0:00:06]} 74. Ra6+ {[%clk 0:00:09]}  Re6 {[%clk 0:00:06]} 75. Ra5 {[%clk 0:00:09]}  Re4 {[%clk 0:00:06]} 76. Kg3 {[%clk 0:00:08]}  Kg7 {[%clk 0:00:06]} 77. Ra8 {[%clk 0:00:08]}  Kh6 {[%clk 0:00:07]} 78. Rh8+ {[%clk 0:00:07]}  Kg7 {[%clk 0:00:07]} 79. Ra8 {[%clk 0:00:08]}  Rg4+ {[%clk 0:00:07]} 80. Kh3 {[%clk 0:00:09]}  Rd4 {[%clk 0:00:08]} 81. Ra7+ {[%clk 0:00:09]}  Kf6 {[%clk 0:00:08]} 82. Ra6+ {[%clk 0:00:10]}  Kf7 {[%clk 0:00:08]} 83. Ra7+ {[%clk 0:00:10]}  Ke6 {[%clk 0:00:09]} 84. Rg7 {[%clk 0:00:10]}  Kf6 {[%clk 0:00:08]} 85. Ra7 {[%clk 0:00:10]}  f4 {[%clk 0:00:08]} 86. Ra6+ {[%clk 0:00:09]}  Kf5 {[%clk 0:00:08]} 87. Ra5+ {[%clk 0:00:09]}  Ke4 {[%clk 0:00:08]} 88. Ra6 {[%clk 0:00:08]}  Kf3 {[%clk 0:00:04]} 89. Rxg6 {[%clk 0:00:07]}  Rd1 {[%clk 0:00:05]} 90. Kh2 {[%clk 0:00:08]}  Rd2+ {[%clk 0:00:05]} 91. Kh3 {[%clk 0:00:08]}  Kf2 {[%clk 0:00:05]} 92. Rg2+ {[%clk 0:00:06]}  Ke3 {[%clk 0:00:04]} 93. Rg5 {[%clk 0:00:07]}  f3 {[%clk 0:00:04]} 94. Re5+ {[%clk 0:00:05]}  Kf4 {[%clk 0:00:03]} 95. Re8 {[%clk 0:00:05]}  Rg2 {[%clk 0:00:03]} 96. Rf8+ {[%clk 0:00:05]}  Ke3 {[%clk 0:00:03]} 97. Re8+ {[%clk 0:00:05]}  Kd2 {[%clk 0:00:04]} 98. Rf8 {[%clk 0:00:05]}  Ke2 {[%clk 0:00:04]} 99. Re8+ {[%clk 0:00:05]}  Kf1 {[%clk 0:00:04]} 0-1


[Site "https://www.chess.com"]

[Event "Titled Tuesday Blitz October 11 Early 2022"]
[White "Ianov, Viktor"]
[Black "Kaidanov, Gregory"]
[WhiteFideId "14102730"]
[BlackFideId "2008564"]
[WhiteElo "2152"]
[BlackElo "2653"]
[Result "0-1"]
[Round "10"]
[TimeControl "180+1"]
[Date "2022.10.12"]
[WhiteClock "0:00:52"]
[BlackClock "0:01:26"]

1. Nf3 {[%clk 0:03:00]}  d5 {[%clk 0:02:59]} 2. g3 {[%clk 0:03:00]}  Nf6 {[%clk 0:02:57]} 3. Bg2 {[%clk 0:03:00]}  Nc6 {[%clk 0:02:56]} 4. c4 {[%clk 0:02:59]}  d4 {[%clk 0:02:56]} 5. d3 {[%clk 0:02:59]}  e5 {[%clk 0:02:55]} 6. O-O {[%clk 0:02:58]}  a5 {[%clk 0:02:54]} 7. e3 {[%clk 0:02:56]}  Be7 {[%clk 0:02:53]} 8. exd4 {[%clk 0:02:56]}  exd4 {[%clk 0:02:54]} 9. Bf4 {[%clk 0:02:54]}  O-O {[%clk 0:02:53]} 10. Na3 {[%clk 0:02:53]}  Be6 {[%clk 0:02:48]} 11. Nb5 {[%clk 0:02:52]}  Rc8 {[%clk 0:02:47]} 12. Ne5 {[%clk 0:02:51]}  Nxe5 {[%clk 0:02:41]} 13. Bxe5 {[%clk 0:02:51]}  Ng4 {[%clk 0:02:41]} 14. Bf4 {[%clk 0:02:40]}  c6 {[%clk 0:02:41]} 15. Na3 {[%clk 0:02:37]}  Qd7 {[%clk 0:02:33]} 16. Nc2 {[%clk 0:02:33]}  h6 {[%clk 0:02:19]} 17. Re1 {[%clk 0:02:31]}  Rfd8 {[%clk 0:02:06]} 18. a3 {[%clk 0:02:21]}  b5 {[%clk 0:02:01]} 19. b3 {[%clk 0:02:19]}  a4 {[%clk 0:02:01]} 20. bxa4 {[%clk 0:02:04]}  bxc4 {[%clk 0:01:59]} 21. dxc4 {[%clk 0:01:59]}  d3 {[%clk 0:01:51]} 22. Nb4 {[%clk 0:01:59]}  Bc5 {[%clk 0:01:45]} 23. Be3 {[%clk 0:01:47]}  Nxe3 {[%clk 0:01:43]} 24. fxe3 {[%clk 0:01:47]}  d2 {[%clk 0:01:43]} 25. Re2 {[%clk 0:01:41]}  Bg4 {[%clk 0:01:42]} 26. Bf1 {[%clk 0:01:17]}  Bxe3+ {[%clk 0:01:41]} 27. Kh1 {[%clk 0:01:14]}  Qf5 {[%clk 0:01:33]} 28. Rxe3 {[%clk 0:01:10]}  Bxd1 {[%clk 0:01:29]} 29. Rxd1 {[%clk 0:01:09]}  Re8 {[%clk 0:01:27]} 30. Rxe8+ {[%clk 0:00:52]}  Rxe8 {[%clk 0:01:26]} 0-1


[Site "https://www.chess.com"]

[Event "Titled Tuesday Blitz October 11 Early 2022"]
[White "Jaskolka, Tomasz"]
[Black "Kodinets, Konstantin L."]
[WhiteFideId "1170791"]
[BlackFideId "4122011"]
[WhiteElo "2126"]
[BlackElo "2447"]
[Result "1-0"]
[Round "10"]
[TimeControl "180+1"]
[Date "2022.10.12"]
[WhiteClock "0:00:10"]
[BlackClock "0:00:06"]

1. d4 {[%clk 0:03:00]}  d6 {[%clk 0:02:57]} 2. e4 {[%clk 0:02:59]}  Nf6 {[%clk 0:02:57]} 3. Nc3 {[%clk 0:02:59]}  e5 {[%clk 0:02:58]} 4. Nf3 {[%clk 0:02:56]}  exd4 {[%clk 0:02:58]} 5. Nxd4 {[%clk 0:02:55]}  Be7 {[%clk 0:02:59]} 6. Bd3 {[%clk 0:02:47]}  Nc6 {[%clk 0:02:57]} 7. Nxc6 {[%clk 0:02:45]}  bxc6 {[%clk 0:02:58]} 8. O-O {[%clk 0:02:44]}  O-O {[%clk 0:02:58]} 9. h3 {[%clk 0:02:39]}  Nd7 {[%clk 0:02:56]} 10. f4 {[%clk 0:02:36]}  Bf6 {[%clk 0:02:56]} 11. Be3 {[%clk 0:02:35]}  a5 {[%clk 0:02:56]} 12. Qe2 {[%clk 0:02:33]}  Rb8 {[%clk 0:02:50]} 13. e5 {[%clk 0:02:02]}  dxe5 {[%clk 0:02:49]} 14. Ne4 {[%clk 0:02:02]}  Be7 {[%clk 0:02:31]} 15. Rad1 {[%clk 0:01:40]}  Qe8 {[%clk 0:02:16]} 16. Qh5 {[%clk 0:01:17]}  f5 {[%clk 0:02:04]} 17. Bc4+ {[%clk 0:01:12]}  Kh8 {[%clk 0:02:04]} 18. Qxe8 {[%clk 0:01:12]}  Rxe8 {[%clk 0:02:04]} 19. Ng3 {[%clk 0:01:07]}  Nb6 {[%clk 0:01:38]} 20. Bxb6 {[%clk 0:00:55]}  cxb6 {[%clk 0:01:32]} 21. fxe5 {[%clk 0:00:56]}  g6 {[%clk 0:01:32]} 22. Bf7 {[%clk 0:00:51]}  Rf8 {[%clk 0:01:29]} 23. e6 {[%clk 0:00:52]}  b5 {[%clk 0:00:59]} 24. b3 {[%clk 0:00:49]}  c5 {[%clk 0:00:57]} 25. Ne2 {[%clk 0:00:47]}  Bg5 {[%clk 0:00:30]} 26. Nc3 {[%clk 0:00:40]}  Be3+ {[%clk 0:00:25]} 27. Kh1 {[%clk 0:00:40]}  Bd4 {[%clk 0:00:25]} 28. Nd5 {[%clk 0:00:39]}  Bb7 {[%clk 0:00:26]} 29. c4 {[%clk 0:00:38]}  Kg7 {[%clk 0:00:20]} 30. Nc7 {[%clk 0:00:29]}  bxc4 {[%clk 0:00:18]} 31. bxc4 {[%clk 0:00:30]}  Rxf7 {[%clk 0:00:18]} 32. exf7 {[%clk 0:00:30]}  Kxf7 {[%clk 0:00:19]} 33. Nb5 {[%clk 0:00:30]}  Rd8 {[%clk 0:00:16]} 34. Rde1 {[%clk 0:00:14]}  Ba6 {[%clk 0:00:13]} 35. a4 {[%clk 0:00:13]}  Rd7 {[%clk 0:00:12]} 36. Rd1 {[%clk 0:00:12]}  Bb7 {[%clk 0:00:11]} 37. Rd2 {[%clk 0:00:08]}  Bc6 {[%clk 0:00:08]} 38. Rfd1 {[%clk 0:00:08]}  Bxb5 {[%clk 0:00:08]} 39. axb5 {[%clk 0:00:09]}  a4 {[%clk 0:00:08]} 40. Ra2 {[%clk 0:00:09]}  Ra7 {[%clk 0:00:08]} 41. Rd3 {[%clk 0:00:09]}  a3 {[%clk 0:00:04]} 42. Rdxa3 {[%clk 0:00:08]}  Rxa3 {[%clk 0:00:01]} 43. Rxa3 {[%clk 0:00:08]}  Ke6 {[%clk 0:00:02]} 44. g3 {[%clk 0:00:08]}  g5 {[%clk 0:00:01]} 45. Kg2 {[%clk 0:00:08]}  f4 {[%clk 0:00:02]} 46. gxf4 {[%clk 0:00:09]}  gxf4 {[%clk 0:00:03]} 47. Kf3 {[%clk 0:00:09]}  Ke5 {[%clk 0:00:03]} 48. b6 {[%clk 0:00:09]}  Be3 {[%clk 0:00:04]} 49. b7 {[%clk 0:00:09]}  Kd4 {[%clk 0:00:05]} 50. b8=Q {[%clk 0:00:10]}  Kxc4 {[%clk 0:00:06]} 51. Qb3+ {[%clk 0:00:10]} 1-0


[Site "https://www.chess.com"]

[Event "Titled Tuesday Blitz October 11 Early 2022"]
[White "Jobava, Baadur"]
[Black "Xu, Yi"]
[WhiteFideId "13601520"]
[BlackFideId "8605564"]
[WhiteElo "2582"]
[BlackElo "2471"]
[Result "0-1"]
[Round "10"]
[TimeControl "180+1"]
[Date "2022.10.11"]
[WhiteClock "0:00:02"]
[BlackClock "0:00:44"]

1. d4 {[%clk 0:03:00]}  Nf6 {[%clk 0:03:00]} 2. Nc3 {[%clk 0:03:01]}  d5 {[%clk 0:03:00]} 3. Bf4 {[%clk 0:03:02]}  a6 {[%clk 0:02:58]} 4. e3 {[%clk 0:03:02]}  e6 {[%clk 0:02:57]} 5. a3 {[%clk 0:03:02]}  c5 {[%clk 0:02:56]} 6. h3 {[%clk 0:03:03]}  Nc6 {[%clk 0:02:56]} 7. Nf3 {[%clk 0:03:03]}  Bd6 {[%clk 0:02:54]} 8. dxc5 {[%clk 0:03:04]}  Bxc5 {[%clk 0:02:54]} 9. Bd3 {[%clk 0:03:04]}  Bd6 {[%clk 0:02:53]} 10. Bxd6 {[%clk 0:02:46]}  Qxd6 {[%clk 0:02:54]} 11. O-O {[%clk 0:02:45]}  O-O {[%clk 0:02:54]} 12. e4 {[%clk 0:02:42]}  d4 {[%clk 0:02:51]} 13. Ne2 {[%clk 0:02:42]}  e5 {[%clk 0:02:51]} 14. Qd2 {[%clk 0:02:35]}  Rd8 {[%clk 0:02:45]} 15. Rae1 {[%clk 0:02:32]}  Be6 {[%clk 0:02:38]} 16. Ng5 {[%clk 0:02:31]}  h6 {[%clk 0:02:35]} 17. Nxe6 {[%clk 0:02:31]}  Qxe6 {[%clk 0:02:36]} 18. Kh2 {[%clk 0:02:20]}  Rac8 {[%clk 0:02:36]} 19. g4 {[%clk 0:02:16]}  Nh7 {[%clk 0:02:30]} 20. Kg2 {[%clk 0:02:09]}  b5 {[%clk 0:02:22]} 21. Ng3 {[%clk 0:02:03]}  Qg6 {[%clk 0:01:57]} 22. Nf5 {[%clk 0:02:00]}  Ng5 {[%clk 0:01:55]} 23. f4 {[%clk 0:01:55]}  Ne6 {[%clk 0:01:36]} 24. fxe5 {[%clk 0:01:55]}  Rc7 {[%clk 0:01:36]} 25. Qf2 {[%clk 0:01:41]}  Nxe5 {[%clk 0:01:29]} 26. Qg3 {[%clk 0:01:42]}  Nxd3 {[%clk 0:01:25]} 27. cxd3 {[%clk 0:01:38]}  Rdc8 {[%clk 0:01:16]} 28. Rf2 {[%clk 0:01:37]}  Qg5 {[%clk 0:01:14]} 29. h4 {[%clk 0:01:35]}  Qd8 {[%clk 0:01:10]} 30. Ref1 {[%clk 0:01:33]}  Rc2 {[%clk 0:01:07]} 31. Rxc2 {[%clk 0:01:08]}  Rxc2+ {[%clk 0:01:07]} 32. Rf2 {[%clk 0:01:09]}  Rxf2+ {[%clk 0:01:05]} 33. Kxf2 {[%clk 0:01:10]}  Qa5 {[%clk 0:00:52]} 34. Ke2 {[%clk 0:00:52]}  Qa4 {[%clk 0:00:51]} 35. Qb8+ {[%clk 0:00:08]}  Kh7 {[%clk 0:00:51]} 36. Qe8 {[%clk 0:00:06]}  Qc2+ {[%clk 0:00:50]} 37. Ke1 {[%clk 0:00:02]}  Nf4 {[%clk 0:00:44]} 0-1


[Site "https://www.chess.com"]

[Event "Titled Tuesday Blitz October 11 Early 2022"]
[White "Kaganskiy, Gleb"]
[Black "Blokhin, Sofia"]
[WhiteFideId "4132025"]
[BlackFideId "4508190"]
[WhiteElo "2165"]
[BlackElo "2005"]
[Result "1-0"]
[Round "10"]
[TimeControl "180+1"]
[Date "2022.10.12"]
[WhiteClock "0:00:09"]
[BlackClock "0:00:04"]

1. e4 {[%clk 0:03:00]}  c5 {[%clk 0:02:59]} 2. Nf3 {[%clk 0:02:59]}  Nc6 {[%clk 0:02:58]} 3. Bb5 {[%clk 0:02:58]}  d6 {[%clk 0:02:57]} 4. Bxc6+ {[%clk 0:02:46]}  bxc6 {[%clk 0:02:57]} 5. e5 {[%clk 0:02:47]}  d5 {[%clk 0:02:55]} 6. h3 {[%clk 0:02:45]}  Bf5 {[%clk 0:02:54]} 7. d3 {[%clk 0:02:43]}  e6 {[%clk 0:02:49]} 8. b3 {[%clk 0:02:42]}  Be7 {[%clk 0:02:48]} 9. Bb2 {[%clk 0:02:36]}  f6 {[%clk 0:02:47]} 10. O-O {[%clk 0:02:35]}  fxe5 {[%clk 0:02:46]} 11. Nxe5 {[%clk 0:02:35]}  Qc7 {[%clk 0:02:43]} 12. c4 {[%clk 0:02:26]}  d4 {[%clk 0:02:42]} 13. Re1 {[%clk 0:02:22]}  Nf6 {[%clk 0:02:41]} 14. Nd2 {[%clk 0:02:19]}  O-O {[%clk 0:02:39]} 15. Ndf3 {[%clk 0:02:17]}  Bd6 {[%clk 0:02:38]} 16. Ba3 {[%clk 0:02:13]}  a5 {[%clk 0:02:35]} 17. Re2 {[%clk 0:01:55]}  h6 {[%clk 0:02:33]} 18. Qc2 {[%clk 0:01:54]}  Nh5 {[%clk 0:02:29]} 19. Bc1 {[%clk 0:01:46]}  g5 {[%clk 0:02:24]} 20. Bd2 {[%clk 0:01:45]}  Ng7 {[%clk 0:02:20]} 21. Rae1 {[%clk 0:01:43]}  Rf6 {[%clk 0:02:13]} 22. Ng4 {[%clk 0:01:37]}  Bxg4 {[%clk 0:02:11]} 23. hxg4 {[%clk 0:01:37]}  Bf4 {[%clk 0:02:06]} 24. Ne5 {[%clk 0:01:32]}  Raf8 {[%clk 0:01:57]} 25. g3 {[%clk 0:01:17]}  Bxe5 {[%clk 0:01:55]} 26. Rxe5 {[%clk 0:01:16]}  Rxf2 {[%clk 0:01:54]} 27. Qd1 {[%clk 0:01:03]}  R2f3 {[%clk 0:01:30]} 28. Kg2 {[%clk 0:00:55]}  Rxd3 {[%clk 0:01:24]} 29. Qe2 {[%clk 0:00:50]}  Rff3 {[%clk 0:01:20]} 30. Qxf3 {[%clk 0:00:47]}  Rxf3 {[%clk 0:01:16]} 31. Kxf3 {[%clk 0:00:48]}  Qf7+ {[%clk 0:01:12]} 32. Kg2 {[%clk 0:00:46]}  Qg6 {[%clk 0:01:12]} 33. R1e4 {[%clk 0:00:39]}  Kf7 {[%clk 0:01:07]} 34. Bxa5 {[%clk 0:00:37]}  Ne8 {[%clk 0:01:05]} 35. Rxe6 {[%clk 0:00:33]}  Qxe6 {[%clk 0:00:57]} 36. Rxe6 {[%clk 0:00:34]}  Kxe6 {[%clk 0:00:57]} 37. Bb6 {[%clk 0:00:31]}  Kd6 {[%clk 0:00:57]} 38. Kf3 {[%clk 0:00:19]}  Nf6 {[%clk 0:00:56]} 39. a4 {[%clk 0:00:16]}  Nd7 {[%clk 0:00:54]} 40. Bd8 {[%clk 0:00:11]}  Ne5+ {[%clk 0:00:54]} 41. Ke2 {[%clk 0:00:11]}  Nxg4 {[%clk 0:00:53]} 42. a5 {[%clk 0:00:11]}  Kd7 {[%clk 0:00:49]} 43. a6 {[%clk 0:00:11]}  Kc8 {[%clk 0:00:45]} 44. Bb6 {[%clk 0:00:11]}  h5 {[%clk 0:00:33]} 45. Bxc5 {[%clk 0:00:11]}  h4 {[%clk 0:00:29]} 46. gxh4 {[%clk 0:00:11]}  gxh4 {[%clk 0:00:30]} 47. Bxd4 {[%clk 0:00:10]}  h3 {[%clk 0:00:28]} 48. Kf3 {[%clk 0:00:10]}  h2 {[%clk 0:00:26]} 49. Kg2 {[%clk 0:00:11]}  Kb8 {[%clk 0:00:21]} 50. b4 {[%clk 0:00:11]}  Ka8 {[%clk 0:00:13]} 51. b5 {[%clk 0:00:11]}  cxb5 {[%clk 0:00:11]} 52. cxb5 {[%clk 0:00:12]}  Nh6 {[%clk 0:00:07]} 53. Kxh2 {[%clk 0:00:10]}  Nf5 {[%clk 0:00:05]} 54. Bc5 {[%clk 0:00:09]}  Ng7 {[%clk 0:00:04]} 55. b6 {[%clk 0:00:09]}  Ne6 {[%clk 0:00:04]} 56. b7+ {[%clk 0:00:08]}  Kb8 {[%clk 0:00:04]} 57. Bd6+ {[%clk 0:00:09]}  Nc7 {[%clk 0:00:03]} 58. Bxc7+ {[%clk 0:00:06]}  Kxc7 {[%clk 0:00:04]} 59. Kg3 {[%clk 0:00:07]}  Kb8 {[%clk 0:00:04]} 60. Kf4 {[%clk 0:00:08]}  Ka7 {[%clk 0:00:05]} 61. Ke5 {[%clk 0:00:08]}  Kb8 {[%clk 0:00:05]} 62. Kd6 {[%clk 0:00:08]}  Ka7 {[%clk 0:00:05]} 63. Kc7 {[%clk 0:00:09]}  Kxa6 {[%clk 0:00:04]} 64. b8=Q {[%clk 0:00:09]} 1-0


[Site "https://www.chess.com"]

[Event "Titled Tuesday Blitz October 11 Early 2022"]
[White "Kiseljova, Marya"]
[Black "Antonio, Jorge Carlos"]
[WhiteFideId "4155009"]
[BlackFideId "113190"]
[WhiteElo "1931"]
[BlackElo "2247"]
[Result "0-1"]
[Round "10"]
[TimeControl "180+1"]
[Date "2022.10.12"]
[WhiteClock "0:00:02"]
[BlackClock "0:00:05"]

1. d4 {[%clk 0:03:00]}  d5 {[%clk 0:02:55]} 2. c4 {[%clk 0:03:01]}  c6 {[%clk 0:02:55]} 3. Nc3 {[%clk 0:03:00]}  dxc4 {[%clk 0:02:55]} 4. a4 {[%clk 0:02:54]}  Nf6 {[%clk 0:02:54]} 5. e4 {[%clk 0:02:49]}  e5 {[%clk 0:02:51]} 6. dxe5 {[%clk 0:02:43]}  Qxd1+ {[%clk 0:02:50]} 7. Kxd1 {[%clk 0:02:43]}  Ng4 {[%clk 0:02:41]} 8. Nh3 {[%clk 0:02:30]}  Nxe5 {[%clk 0:02:37]} 9. Bf4 {[%clk 0:02:14]}  Nd3 {[%clk 0:02:33]} 10. Bxd3 {[%clk 0:02:10]}  cxd3 {[%clk 0:02:32]} 11. Kd2 {[%clk 0:02:09]}  Na6 {[%clk 0:02:26]} 12. Kxd3 {[%clk 0:01:59]}  Nb4+ {[%clk 0:02:21]} 13. Ke2 {[%clk 0:01:59]}  Bg4+ {[%clk 0:02:15]} 14. f3 {[%clk 0:01:58]}  Be6 {[%clk 0:02:12]} 15. Rhd1 {[%clk 0:01:47]}  Bc4+ {[%clk 0:02:11]} 16. Kf2 {[%clk 0:01:46]}  Nd3+ {[%clk 0:02:07]} 17. Kg3 {[%clk 0:01:46]}  h5 {[%clk 0:02:04]} 18. Rxd3 {[%clk 0:01:26]}  Bxd3 {[%clk 0:01:59]} 19. Rd1 {[%clk 0:01:27]}  Rd8 {[%clk 0:01:47]} 20. Ng5 {[%clk 0:01:10]}  Be7 {[%clk 0:01:42]} 21. h4 {[%clk 0:01:02]}  Bxg5 {[%clk 0:01:27]} 22. Bxg5 {[%clk 0:01:03]}  f6 {[%clk 0:01:24]} 23. Be3 {[%clk 0:01:03]}  Kf7 {[%clk 0:01:24]} 24. Bxa7 {[%clk 0:01:03]}  Bc2 {[%clk 0:01:18]} 25. Rc1 {[%clk 0:00:33]}  Bb3 {[%clk 0:01:16]} 26. Be3 {[%clk 0:00:31]}  Rd3 {[%clk 0:01:07]} 27. Bb6 {[%clk 0:00:28]}  g5 {[%clk 0:01:00]} 28. a5 {[%clk 0:00:25]}  Rd2 {[%clk 0:00:53]} 29. Rb1 {[%clk 0:00:19]}  Bc4 {[%clk 0:00:45]} 30. b3 {[%clk 0:00:18]}  Ba6 {[%clk 0:00:44]} 31. b4 {[%clk 0:00:18]}  Rd3 {[%clk 0:00:42]} 32. Na4 {[%clk 0:00:17]}  Ra3 {[%clk 0:00:38]} 33. Nc5 {[%clk 0:00:18]}  Ra2 {[%clk 0:00:34]} 34. Rd1 {[%clk 0:00:18]}  gxh4+ {[%clk 0:00:34]} 35. Kxh4 {[%clk 0:00:18]}  Rxg2 {[%clk 0:00:29]} 36. Nxb7 {[%clk 0:00:16]}  Kg6 {[%clk 0:00:21]} 37. Nc5 {[%clk 0:00:16]}  Be2 {[%clk 0:00:17]} 38. Rd6 {[%clk 0:00:15]}  Bxf3 {[%clk 0:00:16]} 39. Ne6 {[%clk 0:00:12]}  Rg4+ {[%clk 0:00:13]} 40. Kh3 {[%clk 0:00:12]}  Rxe4 {[%clk 0:00:12]} 41. Kg3 {[%clk 0:00:10]}  Bg4 {[%clk 0:00:10]} 42. Nf4+ {[%clk 0:00:10]}  Kf5 {[%clk 0:00:05]} 43. Rxc6 {[%clk 0:00:06]}  h4+ {[%clk 0:00:05]} 44. Kg2 {[%clk 0:00:05]}  Kxf4 {[%clk 0:00:05]} 45. Rxf6+ {[%clk 0:00:04]}  Kg5 {[%clk 0:00:05]} 46. Rd6 {[%clk 0:00:03]}  h3+ {[%clk 0:00:05]} 47. Kh2 {[%clk 0:00:03]}  Re2+ {[%clk 0:00:05]} 48. Kg3 {[%clk 0:00:03]}  h2 {[%clk 0:00:05]} 49. Rd5+ {[%clk 0:00:02]}  Bf5 {[%clk 0:00:05]} 0-1


[Site "https://www.chess.com"]